fUSD/lending_fUSD_20250618
["ID","MTS","AMOUNT","RATE_DAILY","PERIOD"]
[366390839,1750228257593,-490.0,0.00016602,2]
[366390840,1750228257603,-685.87,0.00016602,2]
[366390841,1750228257612,-490.0,0.00016602,2]
[366390842,1750228257622,-490.0,0.00016602,2]
[366390843,1750228257631,-534.62,0.00016602,2]
[366390844,1750228257641,-763.18,0.00016602,2]
[366390845,1750228257650,-490.0,0.00016602,2]
[366390846,1750228257660,-490.0,0.00016602,2]
[366390847,1750228257670,-490.0,0.00016602,2]
[366390848,1750228257679,-490.0,0.00016602,2]
[366390849,1750228257688,-495.41079905,0.00016602,2]
[366390850,1750228257697,-490.0,0.00016602,2]
[366390851,1750228257707,-490.0,0.00016602,2]
[366390852,1750228257716,-2228.96,0.00016602,2]
[366390853,1750228257726,-490.0,0.00016602,2]
[366390854,1750228257735,-499.28400562,0.00016602,2]
[366390855,1750228257745,-490.0,0.00016602,2]
[366390856,1750228257754,-490.0,0.00016602,2]
[366390857,1750228257764,-1681.55,0.00016602,2]
[366390858,1750228257773,-709.77,0.00016602,2]
[366390859,1750228257782,-490.0,0.00016602,2]
[366390860,1750228257791,-1536.75,0.00016602,2]
[366390861,1750228257800,-570.79,0.00016602,2]
[366390862,1750228257809,-1834.91,0.00016602,2]
[366390863,1750228257819,-1366.99,0.00016602,2]
[366390864,1750228257828,-594.07,0.00016602,2]
[366390865,1750228257838,-746.85,0.00016602,2]
[366390866,1750228257847,-490.0,0.00016602,2]
[366390867,1750228257857,-1349.21,0.00016602,2]
[366390868,1750228257867,-490.0,0.00016602,2]
[366390869,1750228257876,-490.0,0.00016602,2]
[366390870,1750228257886,-1085.53,0.00016602,2]
[366390871,1750228257896,-1198.25,0.00016602,2]
[366390872,1750228257905,-602.22,0.00016602,2]
[366390873,1750228257915,-1324.35,0.00016602,2]
[366390874,1750228257924,-490.0,0.00016602,2]
[366390875,1750228257937,-490.0,0.00016602,2]
[366390876,1750228257947,-1950.78,0.00016602,2]
[366390877,1750228257955,-631.56,0.00016602,2]
[366390878,1750228257963,-490.0,0.00016602,2]
[366390879,1750228257972,-2472.57,0.00016602,2]
[366390880,1750228257982,-490.0,0.00016602,2]
[366390881,1750228257991,-1785.85,0.00016602,2]
[366390882,1750228258000,-490.0,0.00016602,2]
[366390883,1750228258010,-490.0,0.00016602,2]
[366390884,1750228258020,-604.04,0.00016602,2]
[366390885,1750228258030,-561.79,0.00016602,2]
[366390886,1750228258039,-494.49750189,0.00016602,2]
[366390887,1750228258048,-1534.27,0.00016602,2]
[366390888,1750228258058,-490.0,0.00016602,2]
[366390889,1750228258067,-490.0,0.00016602,2]
[366390890,1750228258078,-490.0,0.00016602,2]
[366390891,1750228258088,-617.04,0.00016602,2]
[366390892,1750228258098,-1565.84,0.00016602,2]
[366390893,1750228258108,-490.0,0.00016602,2]
[366390894,1750228258117,-2447.45,0.00016602,2]
[366390895,1750228258127,-459.43238104,0.00016602,2]
[366390896,1750228258136,-644.77,0.00016602,2]
[366390897,1750228258146,-799.94,0.00016602,2]
[366390898,1750228258156,-490.0,0.00016602,2]
[366390899,1750228258166,-581.61,0.00016602,2]
[366390900,1750228258175,-490.0,0.00016602,2]
[366390901,1750228258185,-552.49,0.00016602,2]
[366390902,1750228258194,-751.78,0.00016602,2]
[366390903,1750228258203,-1757.44,0.00016602,2]
[366390904,1750228258213,-687.4,0.00016602,2]
[366390905,1750228258223,-490.0,0.00016602,2]
[366390906,1750228258233,-593.86,0.00016602,2]
[366390907,1750228258242,-680.76,0.00016602,2]
[366390908,1750228258252,-688.59,0.00016602,2]
[366390909,1750228258262,-490.0,0.00016602,2]
[366390910,1750228258271,-490.0,0.00016602,2]
[366390911,1750228258282,-490.0,0.00016602,2]
[366390912,1750228258292,-490.0,0.00016602,2]
[366390913,1750228258302,-490.0,0.00016602,2]
[366390914,1750228258312,-1841.51,0.00016602,2]
[366390915,1750228258322,-490.0,0.00016602,2]
[366390916,1750228258335,-1182.93,0.00016602,2]
[366390917,1750228258345,-490.0,0.00016602,2]
[366390918,1750228258355,-490.0,0.00016602,2]
[366390919,1750228258365,-502.78,0.00016602,2]
[366390920,1750228258375,-490.0,0.00016602,2]
[366390921,1750228258385,-490.29,0.00016602,2]
[366390922,1750228258394,-2057.82,0.00016602,2]
[366390923,1750228258404,-490.0,0.00016602,2]
[366390924,1750228258414,-490.0,0.00016602,2]
[366390925,1750228258424,-490.0,0.00016602,2]
[366390926,1750228258434,-490.0,0.00016602,2]
[366390927,1750228258444,-490.0,0.00016602,2]
[366390928,1750228258454,-1728.94,0.00016602,2]
[366390929,1750228258464,-490.0,0.00016602,2]
[366390930,1750228258474,-1130.61,0.00016602,2]
[366390931,1750228258484,-602.72,0.00016602,2]
[366390932,1750228258494,-490.0,0.00016602,2]
[366390933,1750228258504,-1211.07,0.00016602,2]
[366390934,1750228258514,-490.0,0.00016602,2]
[366390935,1750228258523,-1039.44,0.00016602,2]
[366390936,1750228258534,-535.02,0.00016602,2]
[366390937,1750228258543,-490.0,0.00016602,2]
[366390938,1750228258554,-632.32,0.00016602,2]
[366390939,1750228258564,-490.0,0.00016602,2]
[366390940,1750228258575,-490.0,0.00016602,2]
[366390941,1750228258585,-1450.05,0.00016602,2]
[366390942,1750228258595,-490.0,0.00016602,2]
[366390943,1750228258604,-1191.23,0.00016602,2]
[366390944,1750228258613,-658.83,0.00016602,2]
[366390945,1750228258623,-1957.38,0.00016602,2]
[366390946,1750228258633,-490.0,0.00016602,2]
[366390947,1750228258643,-2010.37,0.00016602,2]
[366390948,1750228258653,-1218.56,0.00016602,2]
[366390949,1750228258662,-490.0,0.00016602,2]
[366390950,1750228258673,-490.0,0.00016602,2]
[366390951,1750228258682,-490.0,0.00016602,2]
[366390952,1750228258693,-778.8,0.00016602,2]
[366390953,1750228258702,-434.80920809,0.00016602,2]
[366390954,1750228258711,-873.25,0.00016602,2]
[366390955,1750228258721,-490.0,0.00016602,2]
[366390956,1750228258729,-1297.98,0.00016602,2]
[366390957,1750228258739,-490.0,0.00016602,2]
[366390958,1750228258749,-894.93,0.00016602,2]
[366390959,1750228258758,-490.0,0.00016602,2]
[366390960,1750228258768,-490.0,0.00016602,2]
[366390961,1750228258777,-490.0,0.00016602,2]
[366390962,1750228258787,-490.0,0.00016602,2]
[366390963,1750228258797,-639.62,0.00016602,2]
[366390964,1750228258806,-548.35,0.00016602,2]
[366390965,1750228258815,-490.0,0.00016602,2]
[366390966,1750228258825,-1604.13,0.00016602,2]
[366390967,1750228258834,-668.18,0.00016602,2]
[366390968,1750228258844,-2818.65,0.00016602,2]
[366390969,1750228258853,-2340.71,0.00016602,2]
[366390970,1750228258863,-490.0,0.00016602,2]
[366390971,1750228258872,-708.31,0.00016602,2]
[366390972,1750228258882,-1354.04,0.00016602,2]
[366390973,1750228258892,-490.0,0.00016602,2]
[366390974,1750228258902,-24970.95,0.00016602,2]
[366390975,1750228258911,-1382.74,0.00016602,2]
[366390976,1750228258921,-1285.03,0.00016602,2]
[366390977,1750228258933,-1771.78,0.00016602,2]
[366390978,1750228258944,-2300.13,0.00016602,2]
[366390979,1750228258953,-490.0,0.00016602,2]
[366390980,1750228258963,-490.0,0.00016602,2]
[366390981,1750228258973,-490.0,0.00016602,2]
[366390982,1750228258982,-4919.38,0.00016602,2]
[366390983,1750228258993,-3928.17,0.00016602,2]
[366390984,1750228259003,-701.12,0.00016602,2]
[366390985,1750228259013,-1316.53,0.00016602,2]
[366390986,1750228259023,-490.0,0.00016602,2]
[366390987,1750228259032,-490.0,0.00016602,2]
[366390988,1750228259042,-490.0,0.00016602,2]
[366390989,1750228259051,-904.86,0.00016602,2]
[366390990,1750228259061,-531.77,0.00016602,2]
[366390991,1750228259070,-948.0,0.00016602,2]
[366390992,1750228259081,-193.45569526,0.00016602,2]
[366390993,1750228259091,-5405.55,0.00016602,2]
[366390994,1750228259100,-490.0,0.00016602,2]
[366390995,1750228259110,-2197.97,0.00016602,2]
[366390996,1750228259120,-4650.41,0.00016602,2]
[366390997,1750228259129,-1635.79,0.00016602,2]
[366390998,1750228259138,-621.18,0.00016602,2]
[366390999,1750228259148,-1724.27,0.00016602,2]
[366391000,1750228259157,-2741.66,0.00016602,2]
[366391001,1750228259167,-490.0,0.00016602,2]
[366391002,1750228259176,-816.96,0.00016602,2]
[366391003,1750228259187,-1201.99,0.00016602,2]
[366391004,1750228259196,-6106.75,0.00016602,2]
[366391005,1750228259205,-490.0,0.00016602,2]
[366391006,1750228259215,-17594.43,0.00016602,2]
[366391007,1750228259224,-1330.77,0.00016602,2]
[366391008,1750228259234,-490.0,0.00016602,2]
[366391009,1750228259243,-2596.87,0.00016602,2]
[366391010,1750228259253,-2323.03,0.00016602,2]
[366391011,1750228259262,-490.0,0.00016602,2]
[366391012,1750228259272,-1352.34,0.00016602,2]
[366391013,1750228259282,-4695.71,0.00016602,2]
[366391014,1750228259291,-1264.7,0.00016602,2]
[366391015,1750228259300,-906.91,0.00016602,2]
[366391016,1750228259310,-490.0,0.00016602,2]
[366391017,1750228259320,-490.0,0.00016602,2]
[366391018,1750228259331,-8109.14,0.00016602,2]
[366391019,1750228259340,-1003.3,0.00016602,2]
[366391020,1750228259349,-1364.12,0.00016602,2]
[366391021,1750228259359,-604.06,0.00016602,2]
[366391022,1750228259368,-1291.35,0.00016602,2]
[366391023,1750228259377,-490.0,0.00016602,2]
[366391024,1750228259387,-490.0,0.00016602,2]
[366391025,1750228259397,-22297.49,0.00016602,2]
[366391026,1750228259406,-1599.41,0.00016602,2]
[366391027,1750228259416,-809.73,0.00016602,2]
[366391028,1750228259425,-3599.46,0.00016602,2]
[366391029,1750228259435,-1337.85,0.00016602,2]
[366391030,1750228259445,-1838.96,0.00016602,2]
[366391031,1750228259454,-490.0,0.00016602,2]
[366391032,1750228259463,-3195.53,0.00016602,2]
[366391033,1750228259474,-953.34,0.00016602,2]
[366391034,1750228259484,-1247.37,0.00016602,2]
[366391035,1750228259493,-2070.27,0.00016602,2]
[366391036,1750228259502,-515.98,0.00016602,2]
[366391037,1750228259512,-6821.37,0.00016602,2]
[366391038,1750228259521,-490.0,0.00016602,2]
[366391039,1750228259530,-912.18,0.00016602,2]
[366391040,1750228259540,-1204.62,0.00016602,2]
[366391041,1750228259549,-490.0,0.00016602,2]
[366391042,1750228259559,-1644.07,0.00016602,2]
[366391043,1750228259568,-4677.6,0.00016602,2]
[366391044,1750228259578,-1298.54,0.00016602,2]
[366391045,1750228259588,-490.0,0.00016602,2]
[366391046,1750228259598,-730.79,0.00016602,2]
[366391047,1750228259609,-3491.36,0.00016602,2]
[366391048,1750228259618,-1391.9,0.00016602,2]
[366391049,1750228259628,-490.0,0.00016602,2]
[366391050,1750228259638,-1743.86,0.00016602,2]
[366391051,1750228259649,-619.96,0.00016602,2]
[366391052,1750228259660,-490.0,0.00016602,2]
[366391053,1750228259669,-14794.3,0.00016602,2]
[366391054,1750228259680,-490.0,0.00016602,2]
[366391055,1750228259690,-1317.23,0.00016602,2]
[366391056,1750228259700,-1871.26,0.00016602,2]
[366391057,1750228259710,-6713.86,0.00016602,2]
[366391058,1750228259719,-1298.76,0.00016602,2]
[366391059,1750228259729,-8496.75,0.00016602,2]
[366391060,1750228259738,-1204.36,0.00016602,2]
[366391061,1750228259749,-1174.88,0.00016602,2]
[366391062,1750228259759,-490.0,0.00016602,2]
[366391063,1750228259769,-604.04,0.00016602,2]
[366391064,1750228259780,-490.0,0.00016602,2]
[366391065,1750228259789,-917.97,0.00016602,2]
[366391066,1750228259799,-853.87,0.00016602,2]
[366391067,1750228259809,-2061.05,0.00016602,2]
[366391068,1750228259818,-490.0,0.00016602,2]
[366391069,1750228259828,-1654.92,0.00016602,2]
[366391070,1750228259837,-546.91,0.00016602,2]
[366391071,1750228259846,-949.12,0.00016602,2]
[366391072,1750228259856,-821.18,0.00016602,2]
[366391073,1750228259867,-1926.16,0.00016602,2]
[366391074,1750228259877,-3446.24,0.00016602,2]
[366391075,1750228259886,-490.0,0.00016602,2]
[366391076,1750228259895,-1059.31,0.00016602,2]
[366391077,1750228259905,-1461.57,0.00016602,2]
[366391078,1750228259915,-3508.56,0.00016602,2]
[366391079,1750228259924,-490.0,0.00016602,2]
[366391080,1750228259939,-728.33,0.00016602,2]
[366391081,1750228259949,-490.0,0.00016602,2]
[366391082,1750228259958,-490.0,0.00016602,2]
[366391083,1750228259967,-2662.3,0.00016602,2]
[366391084,1750228259977,-1702.95,0.00016602,2]
[366391085,1750228259988,-490.0,0.00016602,2]
[366391086,1750228259998,-2593.57,0.00016602,2]
[366391087,1750228260008,-1495.29,0.00016602,2]
[366391088,1750228260018,-1776.09,0.00016602,2]
[366391089,1750228260027,-8590.2,0.00016602,2]
[366391090,1750228260037,-2261.65,0.00016602,2]
[366391091,1750228260046,-1868.55,0.00016602,2]
[366391092,1750228260056,-1642.36,0.00016602,2]
[366391093,1750228260066,-490.0,0.00016602,2]
[366391094,1750228260076,-1860.01,0.00016602,2]
[366391095,1750228260086,-692.43,0.00016602,2]
[366391096,1750228260095,-490.0,0.00016602,2]
[366391097,1750228260105,-490.0,0.00016602,2]
[366391098,1750228260115,-3807.85,0.00016602,2]
[366391099,1750228260125,-3395.25,0.00016602,2]
[366391100,1750228260135,-2610.07,0.00016602,2]
[366391101,1750228260145,-642.29,0.00016602,2]
[366391102,1750228260154,-490.0,0.00016602,2]
[366391103,1750228260164,-2889.51,0.00016602,2]
[366391104,1750228260173,-490.0,0.00016602,2]
[366391105,1750228260183,-2071.04,0.00016602,2]
[366391106,1750228260193,-685.37,0.00016602,2]
[366391107,1750228260202,-1744.39,0.00016602,2]
[366391108,1750228260212,-490.0,0.00016602,2]
[366391109,1750228260221,-490.0,0.00016602,2]
[366391110,1750228260233,-1207.61,0.00016602,2]
[366391111,1750228260242,-3173.6,0.00016602,2]
[366391112,1750228260252,-5597.88,0.00016602,2]
[366391113,1750228260261,-1151.85,0.00016602,2]
[366391114,1750228260271,-490.0,0.00016602,2]
[366391115,1750228260280,-12878.5,0.00016602,2]
[366391116,1750228260290,-490.0,0.00016602,2]
[366391117,1750228260300,-2422.37,0.00016602,2]
[366391118,1750228260311,-1446.99,0.00016602,2]
[366391119,1750228260321,-1418.79,0.00016602,2]
[366391120,1750228260332,-490.0,0.00016602,2]
[366391121,1750228260342,-6588.14,0.00016602,2]
[366391122,1750228260351,-743.73,0.00016602,2]
[366391123,1750228260361,-1952.64,0.00016602,2]
[366391124,1750228260371,-2892.29,0.00016602,2]
[366391125,1750228260381,-1961.57,0.00016602,2]
[366391126,1750228260391,-490.0,0.00016602,2]
[366391127,1750228260401,-490.0,0.00016602,2]
[366391128,1750228260410,-8461.44,0.00016602,2]
[366391129,1750228260420,-9366.78,0.00016602,2]
[366391130,1750228260431,-1255.38,0.00016602,2]
[366391131,1750228260440,-490.0,0.00016602,2]
[366391132,1750228260450,-490.0,0.00016602,2]
[366391133,1750228260460,-767.12,0.00016602,2]
[366391134,1750228260470,-3395.91,0.00016602,2]
[366391135,1750228260480,-957.43,0.00016602,2]
[366391136,1750228260488,-2403.38,0.00016602,2]
[366391137,1750228260497,-490.0,0.00016602,2]
[366391138,1750228260507,-490.0,0.00016602,2]
[366391139,1750228260518,-3179.37,0.00016602,2]
[366391140,1750228260528,-3012.65,0.00016602,2]
[366391141,1750228260538,-7898.84,0.00016602,2]
[366391142,1750228260547,-490.0,0.00016602,2]
[366391143,1750228260557,-490.0,0.00016602,2]
[366391144,1750228260567,-4677.88,0.00016602,2]
[366391145,1750228260579,-2333.91,0.00016602,2]
[366391146,1750228260589,-490.0,0.00016602,2]
[366391147,1750228260598,-490.0,0.00016602,2]
[366391148,1750228260609,-490.0,0.00016602,2]
[366391149,1750228260619,-1846.4,0.00016602,2]
[366391150,1750228260629,-632.87,0.00016602,2]
[366391151,1750228260639,-2189.43,0.00016602,2]
[366391152,1750228260650,-714.33,0.00016602,2]
[366391153,1750228260660,-640.03,0.00016602,2]
[366391154,1750228260671,-2545.49,0.00016602,2]
[366391155,1750228260680,-831.52,0.00016602,2]
[366391156,1750228260689,-490.0,0.00016602,2]
[366391157,1750228260698,-3883.95,0.00016602,2]
[366391158,1750228260708,-490.0,0.00016602,2]
[366391159,1750228260717,-1399.79,0.00016602,2]
[366391160,1750228260727,-490.0,0.00016602,2]
[366391161,1750228260737,-1347.1,0.00016602,2]
[366391162,1750228260747,-880.23,0.00016602,2]
[366391163,1750228260756,-1384.45,0.00016602,2]
[366391164,1750228260766,-699.46,0.00016602,2]
[366391165,1750228260775,-490.0,0.00016602,2]
[366391166,1750228260785,-2519.36,0.00016602,2]
[366391167,1750228260794,-490.0,0.00016602,2]
[366391168,1750228260804,-490.0,0.00016602,2]
[366391169,1750228260813,-8159.29,0.00016602,2]
[366391170,1750228260823,-1332.16,0.00016602,2]
[366391171,1750228260833,-1289.77,0.00016602,2]
[366391172,1750228260843,-490.0,0.00016602,2]
[366391173,1750228260853,-4272.05,0.00016602,2]
[366391174,1750228260862,-1532.53,0.00016602,2]
[366391175,1750228260872,-1104.49,0.00016602,2]
[366391176,1750228260882,-490.0,0.00016602,2]
[366391177,1750228260891,-1650.39,0.00016602,2]
[366391178,1750228260901,-2075.66,0.00016602,2]
[366391179,1750228260911,-490.0,0.00016602,2]
[366391180,1750228260920,-10858.51,0.00016602,2]
[366391181,1750228260930,-4982.32,0.00016602,2]
[366391182,1750228260943,-490.0,0.00016602,2]
[366391183,1750228260953,-490.0,0.00016602,2]
[366391184,1750228260963,-490.0,0.00016602,2]
[366391185,1750228260972,-1003.5,0.00016602,2]
[366391186,1750228260982,-490.0,0.00016602,2]
[366391187,1750228260991,-2307.71,0.00016602,2]
[366391188,1750228261000,-490.0,0.00016602,2]
[366391189,1750228261011,-21780.39,0.00016602,2]
[366391190,1750228261021,-1057.56,0.00016602,2]
[366391191,1750228261030,-563.48,0.00016602,2]
[366391192,1750228261040,-490.0,0.00016602,2]
[366391193,1750228261050,-962.03,0.00016602,2]
[366391194,1750228261060,-490.0,0.00016602,2]
[366391195,1750228261070,-490.0,0.00016602,2]
[366391196,1750228261081,-744.81,0.00016602,2]
[366391197,1750228261091,-490.0,0.00016602,2]
[366391198,1750228261101,-9938.58,0.00016602,2]
[366391199,1750228261111,-490.0,0.00016602,2]
[366391200,1750228261121,-490.0,0.00016602,2]
[366391201,1750228261131,-1571.35,0.00016602,2]
[366391202,1750228261140,-490.0,0.00016602,2]
[366391203,1750228261150,-2452.38,0.00016602,2]
[366391204,1750228261161,-807.79,0.00016602,2]
[366391205,1750228261171,-2516.32,0.00016602,2]
[366391206,1750228261180,-490.0,0.00016602,2]
[366391207,1750228261190,-1281.0,0.00016602,2]
[366391208,1750228261200,-4235.28,0.00016602,2]
[366391209,1750228261210,-499.69,0.00016602,2]
[366391210,1750228261219,-490.0,0.00016602,2]
[366391211,1750228261229,-266.08778228,0.00016602,2]
[366391212,1750228261239,-5518.56,0.00016602,2]
[366391213,1750228261248,-490.52395401,0.00016602,2]
[366391214,1750228261258,-490.0,0.00016602,2]
[366391215,1750228261268,-1399.49,0.00016602,2]
[366391216,1750228261277,-586.79,0.00016602,2]
[366391217,1750228261287,-541.81,0.00016602,2]
[366391218,1750228261297,-2418.61,0.00016602,2]
[366391219,1750228261307,-1191.44,0.00016602,2]
[366391220,1750228261318,-490.0,0.00016602,2]
[366391221,1750228261331,-495.84,0.00016602,2]
[366391222,1750228261341,-2746.37,0.00016602,2]
[366391223,1750228261351,-6921.38,0.00016602,2]
[366391224,1750228261361,-779.24,0.00016602,2]
[366391225,1750228261371,-1233.66,0.00016602,2]
[366391226,1750228261380,-1515.9,0.00016602,2]
[366391227,1750228261390,-490.0,0.00016602,2]
[366391228,1750228261401,-966.36,0.00016602,2]
[366391229,1750228261410,-490.0,0.00016602,2]
[366391230,1750228261420,-7215.45,0.00016602,2]
[366391231,1750228261430,-490.0,0.00016602,2]
[366391232,1750228261439,-1844.69,0.00016602,2]
[366391233,1750228261449,-490.0,0.00016602,2]
[366391234,1750228261459,-2277.35,0.00016602,2]
[366391235,1750228261468,-490.0,0.00016602,2]
[366391236,1750228261476,-580.05,0.00016602,2]
[366391237,1750228261485,-490.0,0.00016602,2]
[366391238,1750228261495,-490.0,0.00016602,2]
[366391239,1750228261504,-1771.79,0.00016602,2]
[366391240,1750228261514,-965.28,0.00016602,2]
[366391241,1750228261524,-490.0,0.00016602,2]
[366391242,1750228261535,-490.0,0.00016602,2]
[366391243,1750228261545,-490.0,0.00016602,2]
[366391244,1750228261555,-578.55,0.00016602,2]
[366391245,1750228261564,-490.0,0.00016602,2]
[366391246,1750228261574,-490.0,0.00016602,2]
[366391247,1750228261586,-1328.11,0.00016602,2]
[366391248,1750228261596,-471.84794786,0.00016602,2]
[366391249,1750228261605,-490.0,0.00016602,2]
[366391250,1750228261615,-3396.77,0.00016602,2]
[366391251,1750228261626,-8180.45,0.00016602,2]
[366391252,1750228261635,-1599.47,0.00016602,2]
[366391253,1750228261645,-3783.99,0.00016602,2]
[366391254,1750228261655,-3401.94,0.00016602,2]
[366391255,1750228261664,-1385.41,0.00016602,2]
[366391256,1750228261674,-490.0,0.00016602,2]
[366391257,1750228261684,-689.31,0.00016602,2]
[366391258,1750228261693,-1131.95,0.00016602,2]
[366391259,1750228261703,-500.0,0.00016602,2]
[366391260,1750228261713,-244.68021467,0.00016602,2]
[366391261,1750228261803,-1372.41502703,0.00016609,2]
[366391262,1750228261851,-956.73897753,0.00016624,2]
[366391263,1750228261861,-500.0,0.0001663,2]
[366391264,1750228261871,-833.92080167,0.00016632,2]
[366391265,1750228261880,-500.0,0.00016632,2]
[366391266,1750228261890,-803.0,0.00016645,2]
[366391267,1750228261901,-638.0,0.00016645,2]
[366391268,1750228261911,-1674.0,0.00016645,2]
[366391269,1750228261922,-3333.0,0.00016645,2]
[366391270,1750228261932,-230.0,0.00016653,2]
[366391271,1750228261944,-151.0,0.00016656,2]
[366391272,1750228261954,-500.0,0.00016657,2]
[366391273,1750228261964,-324.57462294,0.00016667,2]
[366391274,1750228261974,-500.0,0.00016684,2]
[366391275,1750228261983,-215.72756873,0.00016685,2]
[366391276,1750228261994,-1372.41502703,0.00016686,2]
[366391277,1750228262004,-59908.62910309,0.000167,2]
[366391278,1750228262015,-151.0,0.00016711,2]
[366391279,1750228262025,-187.0,0.00016712,2]
[366391280,1750228262035,-155.17344834,0.0001674,2]
[366391281,1750228262045,-500.0,0.00016758,2]
[366391282,1750228262055,-500.0,0.0001676,2]
[366391283,1750228262065,-4060.86,0.0001676,2]
[366391284,1750228262075,-1608.0,0.0001676,2]
[366391285,1750228262086,-3565.8753764,0.00016761,2]
[366391286,1750228262096,-29157.7611698,0.00016761,2]
[366391287,1750228262106,-1058.1261803,0.00016761,2]
[366391288,1750228262115,-943.999943,0.00016761,2]
[366391289,1750228262125,-1372.41502703,0.00016763,2]
[366391290,1750228262134,-8343.64,0.00016766,2]
[366391291,1750228262144,-64947.82560029,0.00016766,2]
[366391292,1750228262154,-500.0,0.00016766,2]
[366391293,1750228262163,-455.14447707,0.00016766,2]
[366391294,1750228262173,-151.0,0.00016766,2]
[366391295,1750228262182,-500.0,0.00016766,2]
[366391296,1750228262191,-500.0,0.00016766,2]
[366391297,1750228262201,-500.0,0.00016766,2]
[366391298,1750228262211,-202.51168529,0.00016766,2]
[366391299,1750228262220,-4060.86,0.00016766,2]
[366391300,1750228262230,-4060.86,0.00016766,2]
[366391301,1750228262239,-4060.86,0.00016766,2]
[366391302,1750228262249,-4060.86,0.00016766,2]
[366391303,1750228262259,-300.0,0.00016766,2]
[366391304,1750228262268,-300.0,0.00016766,2]
[366391305,1750228262278,-300.0,0.00016766,2]
[366391306,1750228262287,-300.0,0.00016766,2]
[366391307,1750228262297,-490.0,0.00016767,2]
[366391308,1750228262307,-490.0,0.00016767,2]
[366391309,1750228262317,-829.31,0.00016767,2]
[366391310,1750228262327,-444.99662829,0.00016767,2]
[366391311,1750228262338,-490.0,0.00016767,2]
[366391312,1750228262348,-852.7,0.00016767,2]
[366391313,1750228262357,-976.48,0.00016767,2]
[366391314,1750228262367,-769.61,0.00016767,2]
[366391315,1750228262377,-490.0,0.00016767,2]
[366391316,1750228262387,-490.0,0.00016767,2]
[366391317,1750228262397,-490.0,0.00016767,2]
[366391318,1750228262407,-490.0,0.00016767,2]
[366391319,1750228262418,-490.0,0.00016767,2]
[366391320,1750228262428,-490.0,0.00016767,2]
[366391321,1750228262439,-490.0,0.00016767,2]
[366391322,1750228262450,-490.0,0.00016767,2]
[366391323,1750228262461,-734.69,0.00016767,2]
[366391324,1750228262471,-490.0,0.00016767,2]
[366391325,1750228262483,-272.763803,0.00016767,2]
[366391326,1750228262493,-490.0,0.00016767,2]
[366391327,1750228262503,-596.35,0.00016767,2]
[366391328,1750228262513,-300.0,0.00016767,2]
[366391329,1750228262523,-522.52,0.00016767,2]
[366391330,1750228262533,-490.0,0.00016767,2]
[366391331,1750228262542,-742.5,0.00016767,2]
[366391332,1750228262553,-490.0,0.00016767,2]
[366391333,1750228262562,-873.72,0.00016767,2]
[366391334,1750228262572,-490.0,0.00016767,2]
[366391335,1750228262582,-339.96,0.00016767,2]
[366391336,1750228262592,-861.7,0.00016767,2]
[366391337,1750228262601,-490.0,0.00016767,2]
[366391338,1750228262610,-490.0,0.00016767,2]